bitfinex-derivatives/quotes_SOLF0:USTF0_20251209
["timestamp","ask_amount","ask_price","bid_price","bid_amount"]
[1765319881974,3.351009,138.86,138.83,0.05046292]
[1765319882272,0.051009,138.86,138.83,0.05046292]
[1765319882572,3.351009,138.86,138.83,0.05046292]
[1765319882873,3.351009,138.86,138.83,6.53316292]
[1765319888374,3.351009,138.86,138.83,0.05046292]
[1765319888880,3.23,138.84,138.78,61.22]
[1765319889778,0.05375274,138.82,138.8,6.53407901]
[1765319891467,3.28375274,138.82,138.8,6.53407901]
[1765319892478,0.05375274,138.82,138.8,6.53407901]
[1765319892687,5.55656954,138.86,138.84,6.4822]
[1765319892978,3.23,138.88,138.8,2.88419079]
[1765319893382,3.23,138.87,138.83,6.4826]
[1765319893886,0.054955,138.86,138.84,0.05262283]
[1765319894381,3.284955,138.86,138.84,0.05262283]
[1765319900080,3.284955,138.86,138.84,6.53482283]
[1765319901378,0.054955,138.86,138.84,6.53482283]
[1765319903990,3.23,138.91,138.86,100.82]
[1765319904186,3.23,138.91,138.86,61.22]
[1765319904390,3.23,138.94,138.86,162.0398]
[1765319904585,8.79101909,138.93,138.86,162.0398]
[1765319904787,3.23,138.93,138.86,162.0398]
[1765319904994,0.04943332,138.91,138.88,0.04706743]
[1765319905493,3.28943332,138.91,138.88,0.04706743]
[1765319906289,0.04943332,138.91,138.89,6.4799]
[1765319907283,4.9047064,138.98,138.92,100.7764]
[1765319907586,3.24,138.97,138.92,161.9964]
[1765319908094,3.24,138.99,138.94,6.4773]
[1765319908294,3.24,138.99,138.92,61.22]
[1765319908295,0.05155485,138.98,138.95,0.04881867]
[1765319909484,0.05155485,138.98,138.96,67.6966]
[1765319913584,8.77815851,139.04,139.0,6.4749]
[1765319913783,3.24,139.03,139.0,6.4749]
[1765319913995,3.24,139.03,139.01,6.4742]
[1765319914194,8.77815851,139.07,139.01,100.714]
[1765319914496,3.24,139.07,139.03,0.05001538]
[1765319915200,3.24,139.08,139.03,61.25001538]
[1765319915597,3.24,139.08,139.03,67.72321538]
[1765319916396,3.24,139.08,139.04,6.4729]
[1765319916802,3.24,139.08,139.03,61.25001538]
[1765319917005,3.24,139.07,139.03,61.25001538]
[1765319917189,3.24,139.07,139.03,0.05001538]
[1765319918507,3.24,139.05,139.03,0.05001538]
[1765319919004,9.7127,139.05,139.03,0.05001538]
[1765319919302,3.24,139.04,139.03,0.05001538]
[1765319920894,3.24,139.03,138.98,61.18]
[1765319921495,3.24,139.02,138.96,6.4764]
[1765319921690,3.24,139.02,138.92,100.7739]
[1765319921895,3.24,138.97,138.96,0.04699721]
[1765319925990,0.04560307,138.98,138.96,0.04699721]
[1765319926599,0.04560307,138.98,138.96,6.52359721]
[1765319927900,0.04560307,138.98,138.97,61.18]
[1765319928497,0.04560307,138.98,138.96,6.52359721]
[1765319930704,3.24,139.11,139.02,107.1802]
[1765319930913,8.96888744,139.15,139.02,107.1802]
[1765319930914,103.8403,139.17,139.06,100.6748]
[1765319931100,3.24,139.17,139.08,100.6574]
[1765319931297,5.49739834,139.18,139.12,100.6316]
[1765319931498,5.49739834,139.2,139.13,161.7833]
[1765319931697,5.49739834,139.2,139.14,100.617]
[1765319931905,3.24,139.22,139.15,100.65808193]
[1765319932103,3.24,139.21,139.15,100.65808193]
[1765319932409,3.24,139.21,139.17,100.5952]
[1765319932616,3.24,139.21,139.18,61.16]
[1765319932907,100.5092,139.3,139.18,161.7443]
[1765319933109,100.5,139.31,139.19,100.5788]
[1765319933404,3.29175725,139.32,139.23,0.04786177]
[1765319933604,100.5014,139.31,139.26,0.05199624]
[1765319933810,100.5076,139.3,139.19,100.5788]
[1765319934211,3.29175725,139.32,139.22,100.5588]
[1765319934507,3.29175725,139.32,139.23,100.5518]
[1765319934709,3.25,139.31,139.23,100.5518]
[1765319935015,0.05133253,139.29,139.26,0.05217507]
[1765319935204,0.05133253,139.29,139.26,61.19217507]
[1765319935807,3.30133253,139.29,139.26,61.19217507]
[1765319936516,3.30133253,139.29,139.26,0.05217507]
[1765319936905,103.81613253,139.29,139.26,0.05217507]
[1765319937108,3.25,139.27,139.18,100.588]
[1765319937415,3.25,139.27,139.19,61.14]
[1765319938110,0.05385299,139.24,139.22,0.05208596]
[1765319940511,3.30385299,139.24,139.22,0.05208596]
[1765319940905,3.25,139.2,139.11,6.43879885]
[1765319941120,3.25,139.23,139.13,100.6237]
[1765319941413,3.25,139.23,139.14,161.717]
[1765319941608,3.25,139.23,139.15,100.6084]
[1765319941809,0.04681951,139.2,139.18,0.05110304]
[1765319942822,3.29681951,139.2,139.18,0.05110304]
[1765319943020,3.29681951,139.2,139.14,61.1]
[1765319943220,3.25,139.19,139.08,100.6605]
[1765319943419,3.25,139.18,139.09,61.1]
[1765319943914,0.05322266,139.15,139.12,0.04874777]
[1765319944221,3.30322266,139.15,139.12,0.04874777]
[1765319945109,0.05322266,139.15,139.12,0.04874777]
[1765319945308,3.30322266,139.15,139.12,0.04874777]
[1765319947720,3.30322266,139.15,139.09,61.1]
[1765319948019,3.05,139.13,139.03,100.6973]
[1765319948219,3.05,139.13,139.02,161.8067]
[1765319948411,3.05,139.11,139.03,6.4733]
[1765319948817,3.05,139.07,139.06,0.048121]
[1765319949516,0.04935005,139.08,139.06,0.048121]
[1765319949716,3.09935005,139.08,139.06,0.048121]
[1765319951111,3.09935005,139.08,139.01,6.474]
[1765319951317,3.05,139.07,138.99,6.4752]
[1765319951721,3.05,139.07,139.0,6.4746]
[1765319952118,0.04779634,139.05,139.02,0.05217875]
[1765319952318,3.05,139.04,139.02,0.05217875]
[1765319952722,3.05,139.04,138.92,100.7763]
[1765319952723,102.1367,139.04,138.92,100.7763]
[1765319952918,3.05,139.02,138.92,100.7763]
[1765319953119,3.05,139.01,138.91,61.1]
[1765319953316,3.05,138.99,138.92,6.4784]
[1765319953721,3.05,138.96,138.94,0.05353705]
[1765319954732,3.05,138.94,138.88,6.4803]
[1765319955426,3.05,138.93,138.86,67.6012]
[1765319955822,3.10035101,138.91,138.88,0.05285611]
[1765319956621,0.05035101,138.91,138.88,0.05285611]
[1765319957030,3.10035101,138.91,138.88,0.05285611]
[1765319958716,3.05,138.89,138.88,0.05285611]
[1765319959325,3.05,138.89,138.82,67.6231]
[1765319959628,3.05,138.88,138.82,67.6231]
[1765319959933,9.5307,138.88,138.82,61.14]
[1765319960323,3.05,138.85,138.84,0.05120241]
[1765319961018,0.05256499,138.86,138.84,0.05120241]
[1765319965238,0.05256499,138.86,138.84,6.53330241]
[1765319965933,5.8605952,138.91,138.84,6.53330241]
[1765319965934,5.8605952,138.9,138.87,6.4809]
[1765319966237,3.27,138.97,138.88,100.807]
[1765319966429,5.85778906,138.96,138.88,161.987]
[1765319966628,5.85778906,138.95,138.91,6.4788]
[1765319966934,0.05335117,138.94,138.92,0.05097691]
[1765319967538,0.05335117,138.94,138.92,6.52937691]
[1765319971338,3.27,138.99,138.94,6.4774]
[1765319971543,3.27,139.01,138.94,6.4774]
[1765319972340,3.31550191,138.99,138.96,0.04819395]
[1765319973748,9.79090191,138.99,138.96,0.04819395]
[1765319974856,3.27,138.97,138.96,0.04819395]
[1765319975058,3.27,138.96,138.88,61.18]
[1765319975653,15.55415959,138.95,138.88,67.6602]
[1765319975856,3.27,138.94,138.88,61.18]
[1765319976158,3.27,138.92,138.9,0.0457765]
[1765319976949,3.27,138.92,138.84,100.835]
[1765319976950,3.27,138.9,138.84,6.482]
[1765319977149,3.27,138.9,138.79,100.8707]
[1765319977355,3.27,138.89,138.8,162.0451]
[1765319977563,3.27,138.88,138.8,61.18]
[1765319977759,3.27,138.87,138.8,61.18]
[1765319978260,0.05253628,138.85,138.82,0.0496009]
[1765319979459,0.05253628,138.85,138.82,6.5327009]
[1765319979860,0.05253628,138.85,138.82,0.0496009]
[1765319981166,3.32253628,138.85,138.82,0.0496009]
[1765319984262,5.75344095,138.84,138.82,0.0496009]
[1765319984465,5.75344095,138.83,138.82,0.0496009]
[1765319985368,9.02344095,138.83,138.82,0.0496009]
[1765319986272,9.7535,138.82,138.76,6.4858]
[1765319986473,3.27,138.8,138.76,6.4858]
[1765319986665,3.27,138.8,138.74,302.99982458]
[1765319986666,5.68968838,138.79,138.74,302.99982458]
[1765319986869,3.27,138.79,138.74,302.99982458]
[1765319987271,5.74611365,138.78,138.75,6.53806869]
[1765319987570,0.0500552,138.78,138.75,6.53806869]
[1765319988367,0.0500552,138.78,138.77,6.4856]
[1765319989778,8.53989063,138.84,138.8,6.4842]
[1765319989967,3.27,138.84,138.77,100.8873]
[1765319990474,3.27,138.84,138.79,6.4846]
[1765319990972,3.31698846,138.83,138.8,0.05510919]
[1765319992477,3.27,138.81,138.8,0.05510919]
[1765319996270,8.55200498,138.81,138.8,0.05510919]
[1765319999376,3.27,138.81,138.8,0.05510919]
[1765319999979,3.01,138.8,138.75,67.7063]
[1765320000187,3.01,138.78,138.75,61.22]
[1765320000479,3.01,138.76,138.68,263.1372]
[1765320000786,3.01,138.76,138.66,122.93491111]
[1765320000987,3.05669603,138.72,138.7,0.04654788]
[1765320001291,3.06368448,138.72,138.7,0.04654788]
[1765320001671,8.30023748,138.71,138.7,0.04654788]
[1765320002679,14.78913748,138.71,138.62,162.2331]
[1765320002877,5.29023748,138.7,138.62,162.2331]
[1765320003070,5.29023748,138.69,138.62,162.2331]
[1765320003268,5.29023748,138.68,138.62,162.2331]
[1765320003486,0.05278487,138.66,138.65,6.4911]
[1765320003675,0.0489911,138.67,138.64,0.0533573]
[1765320003984,3.05751489,138.67,138.64,0.05519438]
[1765320005584,0.04751489,138.67,138.64,0.05519438]
[1765320006087,0.04751489,138.67,138.65,6.4908]
[1765320007986,0.04751489,138.67,138.66,61.26]
[1765320011787,3.3,138.73,138.67,100.9593]
[1765320012587,3.3,138.75,138.69,100.9453]
[1765320012793,0.05331857,138.73,138.71,0.04820194]
[1765320012986,0.04836874,138.73,138.71,0.04820194]
[1765320013292,0.04836874,138.73,138.72,6.4878]
[1765320013683,0.04836874,138.73,138.71,0.04820194]
[1765320013989,3.34836874,138.73,138.71,0.04820194]
[1765320021398,9.83596874,138.73,138.71,0.04820194]
[1765320021598,3.3,138.72,138.71,0.04820194]
[1765320026389,3.3,138.72,138.67,6.4899]
[1765320026390,3.17,138.71,138.65,6.4908]
[1765320026598,3.17,138.71,138.61,61.28]
[1765320026797,3.17,138.69,138.61,61.28]
[1765320027305,0.04652073,138.66,138.64,0.04744332]
[1765320028099,3.21652073,138.66,138.64,0.04744332]
[1765320031104,9.70742073,138.66,138.64,0.04744332]
[1765320031306,3.17,138.65,138.64,0.04744332]
[1765320032005,3.17,138.64,138.61,61.28]
[1765320032510,3.17,138.64,138.59,6.4936]
[1765320033197,3.17,138.62,138.6,0.05048055]
[1765320033600,3.17,138.62,138.54,162.3527]
[1765320033998,3.17,138.62,138.58,6.4944]
[1765320034405,3.17,138.6,138.54,61.3]
[1765320034595,0.04663947,138.58,138.56,0.04851175]
[1765320035501,3.21663947,138.58,138.56,6.54371175]
[1765320035915,3.21663947,138.58,138.56,0.04851175]
[1765320036302,3.21663947,138.58,138.52,101.0685]
[1765320037305,3.21663947,138.58,138.49,162.3892]
[1765320037506,0.05015297,138.55,138.49,162.3892]
[1765320037715,0.05015297,138.55,138.49,163.64529096]
[1765320038102,0.05015297,138.55,138.52,6.497]
[1765320038306,3.17,138.54,138.52,6.497]
[1765320038705,3.22015297,138.55,138.53,6.4968]
[1765320039108,3.22015297,138.55,138.5,101.0814]
[1765320039309,3.22015297,138.55,138.49,163.64529096]
[1765320039911,3.22015297,138.55,138.51,6.4975]
[1765320041109,3.22015297,138.55,138.49,62.55609096]
[1765320041110,0.05015297,138.55,138.49,163.64449096]
[1765320042514,3.22015297,138.55,138.51,6.4974]
[1765320042918,3.22015297,138.55,138.5,101.0814]
[1765320044108,0.05015297,138.55,138.53,6.4966]
[1765320049923,0.05015297,138.55,138.53,67.8366]
[1765320050314,0.05015297,138.55,138.51,6.4974]
[1765320050315,3.22015297,138.55,138.51,6.4974]
[1765320055428,6.4965,138.54,138.49,1.25609096]
[1765320055730,3.08,138.53,138.46,61.36]
[1765320056024,3.12936223,138.51,138.46,61.36]
[1765320056625,3.12936223,138.51,138.47,6.4993]
[1765320059342,3.12936223,138.51,138.48,6.4991]
[1765320059732,3.08,138.5,138.46,61.36]
[1765320060034,3.08,138.5,138.47,6.4997]
[1765320061824,3.12936223,138.51,138.47,6.4997]
[1765320064940,0.04936223,138.51,138.46,61.36]
[1765320065541,3.12936223,138.51,138.46,61.36]
[1765320065830,0.04936223,138.51,138.49,6.4987]
[1765320070753,3.25,138.57,138.51,101.0722]
[1765320071747,3.29996073,138.55,138.53,0.04910913]
[1765320072053,3.30367101,138.55,138.53,0.05021645]
[1765320072255,0.05367101,138.55,138.53,0.05021645]
[1765320072455,0.05367101,138.55,138.53,6.54691645]
[1765320072859,3.30367101,138.55,138.53,6.54691645]
[1765320075257,8.66389664,138.58,138.55,6.4959]
[1765320075564,3.25,138.65,138.59,101.0191]
[1765320075966,3.25,138.65,138.6,61.36]
[1765320076462,0.05331917,138.64,138.61,6.53878117]
[1765320080060,0.05331917,138.64,138.62,6.4926]
[1765320081664,13.55404812,138.7,138.65,6.491]
[1765320081864,3.25,138.7,138.63,100.9881]
[1765320082668,0.04804689,138.68,138.65,0.04776155]
[1765320083066,0.04804689,138.68,138.67,6.4902]
[1765320083270,0.04804689,138.68,138.65,0.04776155]
[1765320083661,0.04804689,138.68,138.66,6.4906]
[1765320083872,0.04804689,138.68,138.66,110.34610015]
[1765320084460,0.04804689,138.68,138.67,61.34]
[1765320084665,3.25,138.74,138.67,61.34]
[1765320084666,3.25,138.74,138.68,6.4896]
[1765320085066,3.25,138.74,138.68,107.4433]
[1765320085371,100.863,138.81,138.72,107.4092]
[1765320085372,3.16,138.81,138.72,107.4092]
[1765320085574,3.16,138.81,138.73,61.34]
[1765320085866,0.0479927,138.78,138.76,0.04919947]
[1765320089567,3.2079927,138.78,138.76,0.04919947]
[1765320091865,3.2079927,138.78,138.73,61.34]
[1765320092272,3.16,138.76,138.68,269.6882]
[1765320092470,3.16,138.76,138.68,61.3]
[1765320092775,3.16,138.76,138.69,6.489]
[1765320092974,3.16,138.73,138.71,0.04835763]
[1765320093371,4.6,138.73,138.63,100.9861]
[1765320093676,3.16,138.73,138.63,162.2861]
[1765320094268,3.16,138.71,138.63,61.3]
[1765320094465,3.21065144,138.68,138.66,0.05084281]
[1765320094976,0.05065144,138.68,138.66,0.05084281]
[1765320096377,0.05065144,138.68,138.66,6.54144281]
[1765320097068,3.16,138.75,138.69,6.4892]
[1765320097670,3.16,138.75,138.67,162.2564]
[1765320098176,61.3,138.78,138.67,162.2564]
[1765320098177,0.05344673,138.72,138.7,6.53601564]
[1765320098377,0.04974119,138.72,138.7,0.04731564]
[1765320099479,0.04974119,138.72,138.71,6.4884]
[1765320100566,3.16,138.77,138.73,6.4874]
[1765320101371,3.16,138.83,138.75,6.4863]
[1765320101879,3.16,138.79,138.78,0.04545873]
[1765320107077,0.05032574,138.8,138.78,0.04545873]
[1765320107781,0.05032574,138.8,138.78,6.53045873]
[1765320110283,3.16,138.84,138.8,6.4841]
[1765320111078,3.16,138.84,138.81,6.4836]
[1765320111277,3.2116044,138.84,138.81,6.53230557]
[1765320112485,0.0516044,138.84,138.82,6.483]
[1765320114888,3.14,138.88,138.85,6.4818]
[1765320115679,5.45827089,138.9,138.86,6.4813]
[1765320115892,5.50468996,138.89,138.87,0.04976263]
[1765320116394,0.04641907,138.89,138.87,0.04976263]
[1765320117087,0.04641907,138.89,138.87,6.53056263]
[1765320117991,3.18641907,138.89,138.87,0.04976263]
[1765320118191,0.04641907,138.89,138.87,0.04976263]
[1765320118581,0.04641907,138.89,138.88,6.4805]
[1765320119184,5.46371524,138.92,138.87,0.04976263]
[1765320119390,3.14,138.93,138.87,0.04976263]
[1765320119587,3.14,138.93,138.9,6.4794]
[1765320120093,3.19133688,138.93,138.9,6.52868554]
[1765320120291,5.47154568,138.92,138.9,6.52868554]
[1765320120491,3.19133688,138.93,138.9,6.52868554]
[1765320120696,5.47154568,138.92,138.9,6.52868554]
[1765320120891,3.19133688,138.93,138.9,6.52868554]
[1765320121091,5.47154568,138.92,138.9,6.52868554]
[1765320121400,0.05133688,138.93,138.91,6.4789]
[1765320126298,64.45,138.99,138.92,100.7778]
[1765320126602,5.46358947,138.98,138.91,162.0019]
[1765320126804,5.46358947,138.97,138.91,162.0019]
[1765320126997,3.19,138.98,138.91,162.0019]
[1765320127197,0.05399195,138.96,138.93,0.04900807]
[1765320127594,0.05399195,138.96,138.93,6.52680807]
[1765320128101,3.24399195,138.96,138.93,0.04900807]
[1765320129013,3.19,138.95,138.93,0.04900807]
[1765320131614,3.19,139.05,138.99,100.7284]
[1765320131816,3.19,139.07,138.99,103.6060561]
[1765320132612,0.04570379,139.04,139.02,0.04537885]
[1765320138017,3.23570379,139.04,139.02,0.04537885]
[1765320140921,9.70890379,139.04,139.02,0.04537885]
[1765320141226,3.19,139.03,139.02,0.04537885]
[1765320144930,9.7843,139.02,138.95,6.4769]
[1765320145127,9.7843,139.02,138.93,161.9302]
[1765320146040,0.05504896,138.99,138.96,0.0534111]
[1765320146726,0.05504896,138.99,138.96,6.5300111]
[1765320151028,0.05504896,138.99,138.97,6.4762]
[1765320168936,0.05504896,138.99,138.96,0.0534111]
[1765320170443,0.05504896,138.99,138.96,6.5301111]
[1765320175249,0.05504896,138.99,138.96,0.0534111]
[1765320176145,0.05504896,138.99,138.97,6.4762]
[1765320181451,0.05504896,138.99,138.98,6.4758]
[1765320183754,0.05504896,138.99,138.96,6.5298111]
[1765320184159,5.42427943,138.98,138.96,6.5298111]
[1765320184459,0.05504896,138.99,138.96,6.5298111]
[1765320184651,5.42417888,138.98,138.97,6.4763]
[1765320185953,5.42417888,138.98,138.85,100.825]
[1765320185954,100.7522,138.96,138.85,100.825]
[1765320186157,100.7522,138.96,138.84,100.8363]
[1765320186158,4.49288551,138.94,138.84,100.8363]
[1765320186352,6.4791,138.91,138.87,6.4807]
[1765320186558,6.4791,138.91,138.84,61.16]
[1765320186957,0.05465725,138.89,138.86,6.53272206]
[1765320187361,0.05465725,138.89,138.86,0.05142206]
[1765320192363,6.4805,138.88,138.86,0.05142206]
[1765320194155,0.05465725,138.89,138.86,0.05142206]
[1765320195565,6.53475725,138.89,138.86,0.05142206]
[1765320196558,6.4806,138.88,138.86,0.05142206]
[1765320198666,0.05465725,138.89,138.86,0.05142206]
[1765320209276,5.33705274,138.98,138.91,2.87915878]
[1765320209476,100.7178,139.01,138.89,100.7982]
[1765320209477,11.81165274,139.01,138.93,2.87915878]
[1765320209682,5.33705274,139.02,138.93,2.87915878]
[1765320209977,69.43621152,139.04,138.93,2.87915878]
[1765320210172,0.05284954,139.0,138.97,0.04826885]
[1765320212178,3.37284954,139.0,138.97,0.04826885]
[1765320215077,3.32,138.98,138.97,0.04826885]
[1765320216478,6.4768,138.96,138.9,61.2]
[1765320217089,6.4768,138.96,138.9,67.6794]
[1765320217293,3.32,138.98,138.9,61.2]
[1765320217494,0.05241163,138.95,138.93,0.04612804]
[1765320219189,3.37241163,138.95,138.93,0.04612804]
[1765320225087,0.05241163,138.95,138.93,0.04612804]
[1765320225483,3.37241163,138.95,138.93,0.04612804]
[1765320232396,3.37241163,138.95,138.93,6.52422804]
[1765320233405,3.37241163,138.95,138.93,0.04612804]
[1765320236209,0.05241163,138.95,138.93,0.04612804]
[1765320236395,0.05241163,138.95,138.93,100.81802804]
[1765320236599,0.05241163,138.95,138.93,0.04612804]
[1765320236803,0.05241163,138.95,138.93,6.52422804]
[1765320237008,0.05241163,138.95,138.93,0.04612804]
[1765320237804,3.37241163,138.95,138.93,0.04612804]
[1765320238999,0.05241163,138.95,138.93,0.04612804]
[1765320242903,0.05241163,138.95,138.93,6.52402804]
[1765320243406,3.34,139.01,138.96,100.7438]
[1765320244407,0.0455133,139.0,138.97,0.05186209]
[1765320244608,3.3855133,139.0,138.98,6.4754]
[1765320245200,0.0455133,139.0,138.98,6.4754]
[1765320245612,3.3855133,139.0,138.98,6.4754]
[1765320245809,0.0455133,139.0,138.98,6.4754]
[1765320249215,3.3,139.03,139.0,6.4748]
[1765320250205,3.35491761,139.03,139.0,6.52224302]
[1765320251310,3.35491761,139.03,139.01,6.4741]
[1765320253317,3.35491761,139.03,139.0,0.04744302]
[1765320255522,3.35491761,139.03,139.01,6.4743]
[1765320258116,0.05491761,139.03,139.01,6.4743]
[1765320258529,3.35491761,139.03,139.01,6.4743]
[1765320259927,3.35491761,139.03,139.0,0.04744302]
[1765320261527,3.35491761,139.03,139.0,6.52224302]
[1765320264433,3.35491761,139.03,139.0,0.04744302]
[1765320267232,9.82851761,139.03,139.0,0.04744302]
[1765320267432,3.3,139.02,139.0,0.04744302]
[1765320268136,3.3,139.02,139.0,6.52224302]
[1765320270629,3.3,139.02,139.0,0.04744302]
[1765320271330,3.07,139.01,139.0,0.04744302]
[1765320272026,3.07,139.0,138.96,6.4766]
[1765320272239,3.07,139.0,138.91,100.7798]
[1765320272930,0.04787874,138.97,138.94,0.04646302]
[1765320273131,3.07,138.96,138.94,0.04646302]
[1765320273531,3.07,138.96,138.94,6.52376302]
[1765320274233,3.07,138.96,138.94,0.04646302]
[1765320274432,3.07,138.96,138.87,100.8136]
[1765320274433,3.07,138.96,138.87,161.9736]
[1765320274638,3.07,138.95,138.87,161.9736]
[1765320275431,3.12253145,138.92,138.9,6.5331601]
[1765320275627,3.11892452,138.92,138.9,6.5331601]
[1765320289847,0.04892452,138.92,138.9,6.5331601]
[1765320290655,3.11892452,138.92,138.9,6.5331601]
[1765320290953,3.11892452,138.92,138.91,6.4791]
[1765320293051,0.04892452,138.92,138.91,6.4791]
[1765320293453,3.11892452,138.92,138.91,6.4791]
[1765320297860,3.11892452,138.92,138.9,0.0539601]
[1765320298153,3.11892452,138.92,138.9,6.5335601]
[1765320301164,3.11892452,138.92,138.9,0.0539601]
[1765320301553,1.48892452,138.92,138.84,247.96400312]
[1765320301754,3.02,138.9,138.85,6.4815]
[1765320301955,3.02,138.9,138.81,100.8565]
[1765320302458,3.07441893,138.87,138.84,6.533479]
[1765320302659,3.07524504,138.87,138.84,0.04724465]
[1765320303659,9.55644504,138.87,138.84,0.04724465]
[1765320303865,3.02,138.86,138.84,0.04724465]
[1765320305075,3.02,138.85,138.84,0.04724465]
[1765320306361,3.24,138.86,138.84,0.04724465]
[1765320306563,3.29524504,138.87,138.84,0.04724465]
[1765320307458,3.29524504,138.87,138.85,6.4818]
[1765320313266,0.05524504,138.87,138.85,6.4818]
[1765320313968,3.29524504,138.87,138.85,6.4818]
[1765320314757,0.05524504,138.87,138.85,6.4818]
[1765320315461,3.29524504,138.87,138.85,6.4818]
[1765320323477,0.05524504,138.87,138.85,6.4818]
[1765320323877,3.29524504,138.87,138.85,6.4818]
[1765320328171,0.05524504,138.87,138.85,6.4818]
[1765320329186,3.33524504,138.87,138.85,6.4818]
[1765320331382,3.33524504,138.87,138.84,0.04724465]
[1765320331988,0.05524504,138.87,138.84,0.04724465]
[1765320332188,3.33524504,138.87,138.84,0.04724465]
[1765320332692,3.33524504,138.87,138.85,6.4817]
[1765320332891,0.05524504,138.87,138.85,6.4817]
[1765320333991,3.33524504,138.87,138.85,6.4817]
[1765320337189,3.33524504,138.87,138.84,0.04724465]
[1765320337892,0.05524504,138.87,138.84,0.04724465]
[1765320339096,3.33524504,138.87,138.84,0.04724465]
[1765320339497,3.33524504,138.87,138.85,6.4818]
[1765320341789,0.05524504,138.87,138.85,6.4818]
[1765320342794,3.33524504,138.87,138.84,0.04724465]
[1765320343192,3.28,138.85,138.84,0.04724465]
[1765320343398,8.83697586,138.85,138.84,0.04724465]
[1765320350107,3.28,138.84,138.79,61.22]
[1765320350900,3.28,138.84,138.78,2.88031952]
[1765320351103,3.33142882,138.82,138.8,0.04925885]
[1765320351503,3.33142882,138.82,138.8,6.53345885]
[1765320351700,0.05142882,138.82,138.8,6.53345885]
[1765320352902,0.05142882,138.82,138.81,2.88031952]
[1765320353200,0.05142882,138.82,138.8,6.53345885]
[1765320355705,3.28,138.87,138.85,6.4817]
[1765320356095,3.28,138.87,138.81,100.8539]
[1765320356705,3.33174695,138.85,138.84,6.4823]
[1765320356898,3.28,138.85,138.84,6.4823]
[1765320357098,3.28,138.85,138.83,0.04728967]
[1765320357400,3.28,138.85,138.83,6.53008967]
[1765320361008,3.28,138.85,138.83,0.04728967]
[1765320361801,3.28,138.85,138.83,6.52978967]
[1765320364110,3.28,138.85,138.83,0.04728967]
[1765320364511,8.8477802,138.84,138.83,0.04728967]
[1765320367408,5.5577802,138.84,138.83,0.04728967]
[1765320367610,3.25086916,138.86,138.83,6.52998967]
[1765320368715,3.25086916,138.86,138.84,6.4821]
[1765320374619,3.25086916,138.86,138.85,6.4819]
[1765320374915,8.80843718,138.86,138.83,0.04728967]
[1765320375109,3.25086916,138.86,138.83,0.04728967]
[1765320376520,3.25086916,138.86,138.84,6.4824]
[1765320377623,0.05086916,138.86,138.84,6.4824]
[1765320377817,0.05086916,138.86,138.83,0.04728967]
[1765320379426,3.25086916,138.86,138.83,0.04728967]
[1765320379726,3.25086916,138.86,138.84,6.4824]
[1765320380412,0.05086916,138.86,138.84,6.4824]
[1765320380616,3.25086916,138.86,138.84,6.4824]
[1765320382328,5.56081913,138.85,138.84,6.4824]
[1765320386222,8.76081913,138.85,138.84,6.4824]
[1765320386617,5.56081913,138.85,138.84,6.4824]
[1765320388333,5.54372249,138.85,138.84,6.4824]
[1765320391234,8.82372249,138.85,138.84,6.4824]
[1765320391625,5.54372249,138.85,138.84,6.4824]
[1765320395632,3.33086916,138.86,138.84,6.4824]
[1765320403036,3.33086916,138.86,138.83,0.04728967]
[1765320403235,3.28,138.84,138.83,0.04728967]
[1765320403432,8.8234173,138.84,138.83,0.04728967]
[1765320403832,13.59712987,138.84,138.77,61.22]
[1765320404031,3.28,138.82,138.75,100.9007]
[1765320404429,3.28,138.8,138.75,61.22]
[1765320404837,3.28,138.78,138.76,0.05273131]
[1765320405141,3.28,138.76,138.72,243.70663423]
[1765320406039,107.59892344,138.82,138.72,243.70663423]
[1765320406040,3.33148034,138.75,138.73,0.05512217]
[1765320406238,3.33155912,138.75,138.73,0.05425757]
[1765320418640,3.33155912,138.75,138.73,6.54165757]
[1765320422551,3.11,138.82,138.76,100.8952]
[1765320422753,3.11,138.86,138.8,100.8655]